fUST/lending_fUST_20260115
["ID","MTS","AMOUNT","RATE_DAILY","PERIOD"]
[401926619,1768407041678,-500.0,0.00029726,60]
[401926621,1768407041687,-500.0,0.00029726,2]
[401926623,1768407041696,-500.0,0.00029726,60]
[401926625,1768407041705,-500.0,0.00029726,60]
[401926627,1768407041715,-500.0,0.00029726,60]
[401926629,1768407041723,-500.0,0.00029726,60]
[401926631,1768407041733,-500.0,0.00029726,60]
[401926632,1768407041745,-500.0,0.00029726,60]
[401926633,1768407041754,-500.0,0.00029726,60]
[401926634,1768407041762,-500.0,0.00029726,60]
[401926635,1768407041771,-500.0,0.00029726,60]
[401926636,1768407041781,-500.0,0.00029726,60]
[401926637,1768407041790,-2000.0,0.00029734,10]
[401926638,1768407041800,-160.0,0.00029742,3]
[401926639,1768407041809,-728.0,0.00029742,3]
[401926640,1768407041820,-2000.0,0.00029743,10]
[401926641,1768407041829,-2000.0,0.00029752,10]
[401926642,1768407041840,-2000.0,0.0002976,10]
[401926643,1768407041850,-467.0,0.00029763,7]
[401926644,1768407041859,-5000.0,0.00029768,2]
[401926645,1768407041868,-2000.0,0.00029769,10]
[401926646,1768407041877,-2000.0,0.00029778,10]
[401926647,1768407041888,-2000.0,0.00029787,10]
[401926648,1768407041897,-2000.0,0.00029796,10]
[401926649,1768407041906,-151.0,0.000298,16]
[401926650,1768407041916,-2000.0,0.00029804,10]
[401926651,1768407041928,-160.0,0.00029805,6]
[401926652,1768407041936,-2000.0,0.00029813,10]
[401926653,1768407041945,-2000.0,0.00029822,10]
[401926654,1768407041953,-2000.0,0.00029831,10]
[401926655,1768407041962,-2555.1500613,0.00029835,10]
[401926656,1768407041970,-180.0,0.00029836,36]
[401926657,1768407041978,-2000.0,0.0002984,10]
[401926658,1768407041988,-1141.8533694,0.0002984,2]
[401926659,1768407041996,-171.0,0.00029846,120]
[401926660,1768407042005,-167.0,0.00029846,120]
[401926661,1768407042013,-2000.0,0.00029848,10]
[401926662,1768407042023,-1000.0,0.00029852,30]
[401926664,1768407042032,-1000.0,0.00029852,30]
[401926666,1768407042042,-1000.0,0.00029852,30]
[401926668,1768407042051,-2000.0,0.00029857,10]
[401926670,1768407042061,-3000.0,0.00029862,14]
[401926672,1768407042071,-500.0,0.00029863,60]
[401926674,1768407042080,-500.0,0.00029863,60]
[401926676,1768407042090,-500.0,0.00029863,60]
[401926678,1768407042099,-1102.0,0.00029863,120]
[401926680,1768407042109,-500.0,0.00029863,60]
[401926682,1768407042118,-500.0,0.00029863,60]
[401926684,1768407042127,-500.0,0.00029863,60]
[401926686,1768407042137,-500.0,0.00029863,60]
[401926688,1768407042146,-500.0,0.00029863,60]
[401926690,1768407042155,-500.0,0.00029863,60]
[401926692,1768407042165,-500.0,0.00029863,60]
[401926694,1768407042177,-500.0,0.00029863,2]
[401926696,1768407042187,-500.0,0.00029863,60]
[401926698,1768407042197,-500.0,0.00029863,60]
[401926700,1768407042207,-500.0,0.00029863,60]
[401926702,1768407042216,-500.0,0.00029863,60]
[401926704,1768407042225,-500.0,0.00029863,60]
[401926706,1768407042235,-500.0,0.00029863,60]
[401926708,1768407042244,-500.0,0.00029863,60]
[401926710,1768407042253,-500.0,0.00029863,60]
[401926712,1768407042262,-540.44633049,0.00029863,60]
[401926714,1768407042272,-500.0,0.00029863,60]
[401926716,1768407042282,-283.83301289,0.00029863,60]
[401926718,1768407042291,-475.0,0.00029863,120]
[401926720,1768407042303,-475.0,0.00029863,120]
[401926722,1768407042312,-475.0,0.00029863,120]
[401926724,1768407042322,-475.0,0.00029863,120]
[401926726,1768407042331,-475.0,0.00029863,120]
[401926728,1768407042341,-475.0,0.00029863,120]
[401926730,1768407042350,-475.0,0.00029863,120]
[401926732,1768407042359,-475.0,0.00029863,120]
[401926734,1768407042369,-475.0,0.00029863,120]
[401926735,1768407042378,-475.0,0.00029863,120]
[401926737,1768407042387,-475.0,0.00029863,120]
[401926739,1768407042397,-475.0,0.00029863,120]
[401926741,1768407042407,-475.0,0.00029863,120]
[401926744,1768407042416,-475.0,0.00029863,120]
[401926746,1768407042428,-475.0,0.00029863,120]
[401926747,1768407042437,-475.0,0.00029863,120]
[401926749,1768407042447,-475.0,0.00029863,120]
[401926751,1768407042456,-475.0,0.00029863,120]
[401926753,1768407042465,-475.0,0.00029863,120]
[401926755,1768407042475,-475.0,0.00029863,120]
[401926757,1768407042484,-475.0,0.00029863,120]
[401926759,1768407042493,-475.0,0.00029863,120]
[401926761,1768407042503,-475.0,0.00029863,120]
[401926763,1768407042512,-475.0,0.00029863,120]
[401926765,1768407042521,-475.0,0.00029863,120]
[401926767,1768407042530,-475.0,0.00029863,120]
[401926769,1768407042540,-475.0,0.00029863,120]
[401926771,1768407042549,-475.0,0.00029863,120]
[401926773,1768407042558,-475.0,0.00029863,120]
[401926775,1768407042568,-475.0,0.00029863,120]
[401926777,1768407042577,-475.0,0.00029863,120]
[401926779,1768407042587,-475.0,0.00029863,120]
[401926781,1768407042597,-475.0,0.00029863,120]
[401926783,1768407042606,-475.0,0.00029863,120]
[401926785,1768407042615,-475.0,0.00029863,120]
[401926787,1768407042625,-475.0,0.00029863,120]
[401926789,1768407042634,-475.0,0.00029863,120]
[401926791,1768407042643,-475.0,0.00029863,120]
[401926793,1768407042653,-475.0,0.00029863,120]
[401926795,1768407042662,-475.0,0.00029863,120]
[401926797,1768407042674,-475.0,0.00029863,120]
[401926799,1768407042683,-475.0,0.00029863,120]
[401926801,1768407042693,-475.0,0.00029863,120]
[401926803,1768407042702,-475.0,0.00029863,120]
[401926805,1768407042712,-475.0,0.00029863,120]
[401926807,1768407042721,-475.0,0.00029863,120]
[401926809,1768407042734,-475.0,0.00029863,120]
[401926811,1768407042743,-475.0,0.00029863,120]
[401926813,1768407042753,-475.0,0.00029863,120]
[401926815,1768407042762,-475.0,0.00029863,120]
[401926817,1768407042771,-475.0,0.00029863,120]
[401926819,1768407042781,-475.0,0.00029863,120]
[401926821,1768407042790,-475.0,0.00029863,120]
[401926823,1768407042799,-475.0,0.00029863,120]
[401926824,1768407042809,-475.0,0.00029863,120]
[401926826,1768407042818,-475.0,0.00029863,120]
[401926828,1768407042828,-475.0,0.00029863,120]
[401926829,1768407042837,-475.0,0.00029863,120]
[401926830,1768407042847,-475.0,0.00029863,120]
[401926831,1768407042857,-500.0,0.00029863,15]
[401926832,1768407042867,-2000.0,0.00029866,10]
[401926833,1768407042877,-2000.0,0.00029875,10]
[401926834,1768407042886,-2000.0,0.00029884,10]
[401926835,1768407042896,-2000.0,0.00029892,10]
[401926836,1768407042905,-1041.66666667,0.000299,10]
[401926837,1768407042915,-1592.562441,0.000299,5]
[401926838,1768407042926,-8893.76196401,0.000299,2]
[401926839,1768407042936,-2000.0,0.00029901,10]
[401926840,1768407042945,-2000.0,0.0002991,10]
[401926841,1768407042954,-2000.0,0.00029919,10]
[401926842,1768407042964,-1000.0,0.0002992,5]
[401926843,1768407042973,-2000.0,0.00029928,10]
[401926845,1768407042982,-334.26738813,0.00029935,26]
[401926846,1768407042992,-2000.0,0.00029936,10]
[401926848,1768407043001,-1000.0,0.0002994,5]
[401926850,1768407043010,-2000.0,0.00029945,10]
[401926852,1768407043019,-2000.0,0.00029954,10]
[401926853,1768407043029,-1000.0,0.0002996,5]
[401926855,1768407043038,-2000.0,0.00029963,10]
[401926857,1768407043048,-2000.0,0.00029972,10]
[401926859,1768407043058,-1000.0,0.0002998,5]
[401926862,1768407043068,-2000.0,0.0002998,10]
[401926864,1768407043077,-184.3704767,0.00029987,30]
[401926866,1768407043088,-615.15185,0.00029987,30]
[401926868,1768407043097,-2000.0,0.00029989,10]
[401926870,1768407043107,-1641.0,0.00029996,10]
[401926872,1768407043117,-2000.0,0.00029998,10]
[401926874,1768407043128,-2000.0,0.00029998,10]
[401926876,1768407043138,-500.0,0.0003,60]
[401926879,1768407043147,-500.0,0.0003,60]
[401926881,1768407043157,-500.0,0.0003,60]
[401926883,1768407043166,-1102.0,0.0003,120]
[401926885,1768407043177,-500.0,0.0003,60]
[401926887,1768407043187,-500.0,0.0003,60]
[401926889,1768407043196,-500.0,0.0003,60]
[401926891,1768407043207,-500.0,0.0003,60]
[401926893,1768407043218,-200.0,0.0003,60]
[401926895,1768407043227,-421.56871784,0.0003,60]
[401926897,1768407043236,-500.0,0.0003,60]
[401926899,1768407043246,-200.0,0.0003,60]
[401926901,1768407043255,-500.0,0.0003,60]
[401926903,1768407043265,-500.0,0.0003,2]
[401926905,1768407043275,-500.88218581,0.0003,60]
[401926907,1768407043284,-500.0,0.0003,60]
[401926909,1768407043293,-500.0,0.0003,60]
[401926911,1768407043306,-500.0,0.0003,60]
[401926913,1768407043316,-500.0,0.0003,60]
[401926915,1768407043326,-407.49285757,0.0003,60]
[401926917,1768407043335,-500.0,0.0003,60]
[401926919,1768407043346,-500.0,0.0003,60]
[401926921,1768407043355,-450.0,0.0003,60]
[401926923,1768407043365,-17952.93198753,0.0003,2]
[401926925,1768407043375,-6224.27428838,0.0003,2]
[401926927,1768407043384,-165.46,0.0003,5]
[401926929,1768407043393,-300.0,0.0003,60]
[401926931,1768407043402,-269.88494742,0.0003,2]
[401926933,1768407043411,-14028.13015713,0.0003,7]
[401926935,1768407043420,-258.55856433,0.0003,10]
[401926937,1768407043429,-5033.0,0.0003,60]
[401926938,1768407043439,-10000.0,0.0003,2]
[401926941,1768407043448,-1074.547428,0.0003,7]
[401926943,1768407043458,-727038.94597384,0.0003,20]
[401926944,1768407043467,-378.0,0.0003,8]
[401926947,1768407043476,-47703.0,0.0003,30]
[401926949,1768407043486,-900.0,0.0003,7]
[401926951,1768407043495,-161.8907008,0.0003,10]
[401926952,1768407043504,-1151.67804773,0.0003,5]
[401926955,1768407043513,-1500.0,0.0003,120]
[401926956,1768407043523,-151.0,0.0003,7]
[401926959,1768407043532,-172.062842,0.0003,7]
[401926961,1768407043541,-151.0,0.0003,7]
[401926963,1768407043550,-426.474034,0.0003,7]
[401926964,1768407043559,-426.474034,0.0003,7]
[401926967,1768407043569,-426.474034,0.0003,7]
[401926969,1768407043578,-426.474034,0.0003,7]
[401926971,1768407043587,-151.0,0.0003,7]
[401926973,1768407043596,-251.057716,0.0003,7]
[401926975,1768407043605,-251.057716,0.0003,7]
[401926977,1768407043614,-251.057716,0.0003,7]
[401926979,1768407043623,-1000.0,0.0003,5]
[401926981,1768407043633,-251.057716,0.0003,7]
[401926983,1768407043641,-200.857382,0.0003,7]
[401926985,1768407043651,-200.857382,0.0003,7]
[401926987,1768407043660,-200.857382,0.0003,7]
[401926989,1768407043671,-200.857382,0.0003,7]
[401926991,1768407043680,-200.421325,0.0003,7]
[401926993,1768407043690,-200.421325,0.0003,7]
[401926995,1768407043699,-268.73038,0.0003,7]
[401926997,1768407043708,-268.73038,0.0003,7]
[401926999,1768407043717,-200.421325,0.0003,7]
[401927001,1768407043726,-268.73038,0.0003,7]
[401927003,1768407043735,-200.421325,0.0003,7]
[401927005,1768407043745,-268.73038,0.0003,7]
[401927007,1768407043754,-229.830312,0.0003,7]
[401927009,1768407043763,-675.101673,0.0003,7]
[401927011,1768407043772,-675.101673,0.0003,7]
[401927013,1768407043781,-675.101673,0.0003,7]
[401927015,1768407043791,-675.101673,0.0003,7]
[401927017,1768407043800,-151.0,0.0003,7]
[401927018,1768407043810,-385.119138,0.0003,7]
[401927020,1768407043819,-385.119138,0.0003,7]
[401927022,1768407043828,-385.119138,0.0003,7]
[401927024,1768407043837,-385.119138,0.0003,7]
[401927026,1768407043847,-203.93644,0.0003,7]
[401927028,1768407043856,-203.93644,0.0003,7]
[401927030,1768407043865,-203.93644,0.0003,7]
[401927032,1768407043875,-203.93644,0.0003,7]
[401927034,1768407043884,-151.0,0.0003,7]
[401927036,1768407043893,-151.0,0.0003,7]
[401927038,1768407043902,-151.0,0.0003,7]
[401927040,1768407043911,-629.290929,0.0003,7]
[401927042,1768407043920,-629.290929,0.0003,7]
[401927044,1768407043929,-629.290929,0.0003,7]
[401927046,1768407043938,-629.290929,0.0003,7]
[401927048,1768407043947,-151.0,0.0003,7]
[401927050,1768407043957,-151.0,0.0003,7]
[401927052,1768407043966,-151.0,0.0003,7]
[401927054,1768407043975,-171.426769,0.0003,7]
[401927056,1768407043984,-171.426769,0.0003,7]
[401927058,1768407043993,-171.426769,0.0003,7]
[401927060,1768407044002,-171.426769,0.0003,7]
[401927062,1768407044011,-1041.66666667,0.0003,7]
[401927064,1768407044020,-430.079604,0.0003,7]
[401927065,1768407044029,-430.079604,0.0003,7]
[401927068,1768407044039,-430.079604,0.0003,7]
[401927069,1768407044048,-430.079604,0.0003,7]
[401927071,1768407044058,-544.192512,0.0003,7]
[401927073,1768407044067,-544.192512,0.0003,7]
[401927075,1768407044077,-544.192512,0.0003,7]
[401927078,1768407044087,-151.0,0.0003,7]
[401927080,1768407044097,-544.192512,0.0003,7]
[401927082,1768407044107,-151.0,0.0003,7]
[401927084,1768407044117,-151.0,0.0003,7]
[401927086,1768407044127,-345.396288,0.0003,7]
[401927088,1768407044137,-345.396288,0.0003,7]
[401927090,1768407044148,-345.396288,0.0003,7]
[401927091,1768407044157,-345.396288,0.0003,7]
[401927093,1768407044166,-151.75,0.0003,7]
[401927095,1768407044176,-151.0,0.0003,7]
[401927097,1768407044186,-2950.681611,0.0003,7]
[401927099,1768407044195,-183.080684,0.0003,7]
[401927101,1768407044205,-2950.681611,0.0003,7]
[401927103,1768407044215,-2950.681611,0.0003,7]
[401927105,1768407044225,-2950.681611,0.0003,7]
[401927107,1768407044234,-151.0,0.0003,7]
[401927109,1768407044244,-151.0,0.0003,7]
[401927111,1768407044253,-151.0,0.0003,7]
[401927113,1768407044262,-155.398666,0.0003,7]
[401927115,1768407044271,-151.0,0.0003,7]
[401927117,1768407044280,-151.0,0.0003,2]
[401927119,1768407044290,-151.0,0.0003,7]
[401927121,1768407044300,-151.0,0.0003,7]
[401927123,1768407044310,-1110.81,0.0003,30]
[401927125,1768407044319,-1189.142623,0.0003,7]
[401927127,1768407044328,-151.0,0.0003,7]
[401927129,1768407044337,-1189.142623,0.0003,7]
[401927130,1768407044348,-1189.142623,0.0003,7]
[401927132,1768407044357,-1189.142623,0.0003,7]
[401927134,1768407044366,-151.0,0.0003,7]
[401927136,1768407044377,-151.0,0.0003,7]
[401927138,1768407044387,-151.0,0.0003,7]
[401927140,1768407044396,-151.0,0.0003,7]
[401927142,1768407044405,-400.427697,0.0003,7]
[401927144,1768407044414,-400.427697,0.0003,7]
[401927146,1768407044424,-171.320259,0.0003,7]
[401927148,1768407044433,-1428.161168,0.0003,7]
[401927150,1768407044443,-400.427697,0.0003,7]
[401927152,1768407044452,-1020.0,0.0003,7]
[401927154,1768407044461,-1428.161168,0.0003,7]
[401927156,1768407044470,-400.427697,0.0003,7]
[401927158,1768407044480,-1428.161168,0.0003,7]
[401927160,1768407044489,-1428.161168,0.0003,7]
[401927162,1768407044499,-151.0,0.0003,7]
[401927164,1768407044508,-429.8853,0.0003,7]
[401927166,1768407044517,-429.8853,0.0003,7]
[401927168,1768407044527,-429.8853,0.0003,7]
[401927170,1768407044536,-429.8853,0.0003,7]
[401927172,1768407044546,-151.0,0.0003,7]
[401927174,1768407044555,-1041.66666667,0.0003,30]
[401927176,1768407044564,-151.0,0.0003,7]
[401927178,1768407044573,-156.87039,0.0003,7]
[401927180,1768407044582,-151.0,0.0003,7]
[401927182,1768407044592,-225.938304,0.0003,7]
[401927184,1768407044601,-151.0,0.0003,7]
[401927185,1768407044610,-151.0,0.0003,7]
[401927187,1768407044619,-285.638493,0.0003,7]
[401927189,1768407044628,-2000.0,0.0003,120]
[401927191,1768407044637,-2000.0,0.0003,120]
[401927193,1768407044646,-151.0,0.0003,7]
[401927195,1768407044655,-996.312,0.0003,120]
[401927197,1768407044664,-1000.0,0.0003,120]
[401927199,1768407044674,-1000.0,0.0003,120]
[401927201,1768407044683,-1000.0,0.0003,120]
[401927203,1768407044692,-151.0,0.0003,7]
[401927205,1768407044701,-1000.0,0.0003,120]
[401927207,1768407044710,-151.0,0.0003,7]
[401927209,1768407044719,-1000.0,0.0003,120]
[401927211,1768407044728,-151.0,0.0003,7]
[401927213,1768407044737,-151.0,0.0003,7]
[401927215,1768407044748,-151.0,0.0003,7]
[401927217,1768407044757,-151.0,0.0003,7]
[401927219,1768407044766,-151.0,0.0003,7]
[401927221,1768407044775,-151.0,0.0003,7]
[401927223,1768407044784,-151.0,0.0003,7]
[401927224,1768407044793,-151.0,0.0003,7]
[401927226,1768407044802,-1000.0,0.0003002,5]
[401927228,1768407044811,-1000.0,0.0003004,5]
[401927230,1768407044819,-1000.0,0.0003006,5]
[401927232,1768407044828,-1110.81,0.0003006,30]
[401927234,1768407044838,-1000.0,0.0003008,5]
[401927236,1768407044847,-1209.821329,0.0003008,5]
[401927238,1768407044856,-1367.0,0.00030095,2]
[401927240,1768407044865,-2147.0,0.00030095,2]
[401927242,1768407044874,-629.0,0.00030095,2]
[401927244,1768407044883,-281.0,0.000301,2]
[401927246,1768407044893,-604.60519035,0.000301,2]
[401927248,1768407044901,-200.0,0.000301,32]
[401927250,1768407044910,-6513.81815546,0.000301,2]
[401927252,1768407044921,-1000.0,0.000301,5]
[401927254,1768407044931,-1000.0,0.000301,5]
[401927256,1768407044940,-250.0,0.000301,10]
[401927258,1768407044949,-2505.26006047,0.000301,2]
[401927260,1768407044958,-10000.0,0.0003013,2]
[401927262,1768407044967,-200.0,0.00030135,10]
[401927264,1768407044977,-38000.0,0.00030136,10]
[401927266,1768407044987,-38000.0,0.00030136,10]
[401927268,1768407044996,-330.35,0.00030136,120]
[401927270,1768407045005,-300.0,0.00030136,120]
[401927272,1768407045015,-1000.0,0.00030136,120]
[401927274,1768407045024,-5569.29962717,0.00030136,10]
[401927276,1768407045034,-854.97018556,0.00030136,60]
[401927286,1768407045123,-475.0,0.00029863,120]
[401927289,1768407045134,-475.0,0.00029863,120]
[401927291,1768407045143,-475.0,0.00029863,120]
[401927293,1768407045154,-475.0,0.00029863,120]
[401927295,1768407045163,-151.0,0.0003,7]
[401927297,1768407045174,-7688.9,0.00030136,60]
[401927755,1768407049765,-1041.66666667,0.000285,7]
[401927756,1768407049775,-1710.82664783,0.000289,2]
[401927758,1768407049785,-1710.82664781,0.00029184,2]
[401927760,1768407049795,-1710.82664781,0.00029468,2]
[401927762,1768407049805,-10264.58106988,0.00029706,10]
[401927764,1768407049817,-2980.45893012,0.00029706,10]
[401927766,1768407049827,-1710.82664781,0.00029752,2]
[401927768,1768407049837,-475.0,0.00029863,120]
[401927770,1768407049847,-475.0,0.00029863,120]
[401927772,1768407049856,-475.0,0.00029863,120]
[401927774,1768407049865,-475.0,0.00029863,120]
[401927776,1768407049874,-390.578,0.00029863,120]
[401927777,1768407049884,-65055.84864288,0.000299,2]
[401927779,1768407049893,-151.0,0.0003,7]
[401927781,1768407049903,-1041.66666667,0.0003,30]
[401927783,1768407049913,-1710.82664781,0.00030036,2]
[401927785,1768407049931,-5674.75418276,0.00030135,2]
[401927787,1768407049942,-1567.01872416,0.00030136,60]
[401927789,1768407049952,-10110.88890972,0.00030136,60]
[401927791,1768407049962,-10110.88890972,0.00030136,60]
[401927793,1768407049972,-10110.88890972,0.00030136,60]
[401927795,1768407049981,-249.2278475,0.00030136,2]
[401927796,1768407049991,-151.0,0.00030136,60]
[401927798,1768407050001,-500.0,0.00030136,30]
[401927800,1768407050011,-550.0,0.00030136,30]
[401927802,1768407050020,-500.0,0.00030136,11]
[401927804,1768407050029,-500.0,0.00030136,14]
[401927806,1768407050039,-578.09790417,0.00030136,14]
[401927808,1768407050049,-151.0,0.00030136,7]
[401927810,1768407050060,-200.0,0.00030136,7]
[401927812,1768407050069,-200.0,0.00030136,7]
[401927814,1768407050079,-524.62484372,0.00030136,60]
[401927815,1768407050088,-373.21992044,0.00030136,120]
[401927818,1768407050098,-151.0,0.00030136,7]
[401927819,1768407050108,-151.0,0.00030136,7]
[401927821,1768407050117,-151.0,0.00030136,7]
[401927823,1768407050127,-151.0,0.00030136,7]
[401927825,1768407050137,-151.0,0.00030136,7]
[401927827,1768407050146,-151.0,0.00030136,7]
[401927829,1768407050158,-151.0,0.00030136,7]
[401927831,1768407050168,-151.0,0.00030136,7]
[401927833,1768407050179,-151.0,0.00030136,7]
[401927835,1768407050188,-151.0,0.00030136,7]
[401927837,1768407050198,-151.0,0.00030136,7]
[401927839,1768407050207,-151.0,0.00030136,7]
[401927841,1768407050216,-151.0,0.00030136,7]
[401927843,1768407050226,-151.0,0.00030136,7]
[401927844,1768407050235,-151.0,0.00030136,7]
[401927846,1768407050245,-151.0,0.00030136,7]
[401927848,1768407050255,-151.0,0.00030136,7]
[401927850,1768407050265,-151.0,0.00030136,7]
[401927852,1768407050275,-151.0,0.00030136,7]
[401927854,1768407050285,-151.0,0.00030136,7]
[401927856,1768407050296,-151.0,0.00030136,7]
[401927858,1768407050309,-259.92206125,0.00030136,7]
[401927860,1768407050318,-500.0,0.00030136,120]
[401927862,1768407050329,-500.0,0.00030136,120]
[401927864,1768407050339,-500.0,0.00030136,120]
[401927866,1768407050349,-500.0,0.00030136,120]
[401927868,1768407050359,-500.0,0.00030136,120]
[401927870,1768407050368,-500.0,0.00030136,120]
[401927872,1768407050380,-500.0,0.00030136,120]
[401927874,1768407050390,-500.0,0.00030136,120]
[401927876,1768407050399,-500.0,0.00030136,120]
[401927877,1768407050409,-500.0,0.00030136,120]
[401927879,1768407050418,-500.0,0.00030136,120]
[401927881,1768407050429,-500.0,0.00030136,120]
[401927883,1768407050438,-500.0,0.00030136,120]
[401927885,1768407050448,-500.0,0.00030136,120]
[401927887,1768407050458,-500.0,0.00030136,120]
[401927889,1768407050468,-500.0,0.00030136,120]
[401927891,1768407050478,-500.0,0.00030136,120]
[401927893,1768407050492,-500.0,0.00030136,120]
[401927895,1768407050501,-246.13109343,0.00030136,120]
[401927897,1768407050511,-500.0,0.00030136,120]
[401927899,1768407050521,-500.0,0.00030136,120]
[401927901,1768407050530,-500.0,0.00030136,120]
[401927903,1768407050540,-500.0,0.00030136,120]
[401927905,1768407050549,-500.0,0.00030136,120]
[401927907,1768407050559,-151.0,0.00030136,7]
[401927908,1768407050569,-151.0,0.00030136,7]
[401927910,1768407050578,-151.0,0.00030136,7]
[401927912,1768407050588,-221.765393,0.00030136,7]
[401927914,1768407050597,-500.0,0.00030136,120]
[401927916,1768407050607,-500.0,0.00030136,120]
[401927918,1768407050616,-532.39891321,0.00030136,120]
[401927920,1768407050625,-500.0,0.00030136,30]
[401927922,1768407050635,-613.64429435,0.00030136,30]
[401927924,1768407050644,-500.0,0.00030136,120]
[401927925,1768407050654,-500.0,0.00030136,120]
[401927927,1768407050664,-369.2206853,0.00030136,120]
[401927929,1768407050673,-1110.97,0.00030136,10]
[401927931,1768407050684,-1110.97,0.00030136,10]
[401927933,1768407050694,-1110.97,0.00030136,10]
[401927935,1768407050704,-1110.97,0.00030136,10]
[401927937,1768407050714,-1110.97,0.00030136,10]
[401927939,1768407050723,-1110.97,0.00030136,10]
[401927941,1768407050732,-1110.97,0.00030136,10]
[401927943,1768407050742,-1110.97,0.00030136,10]
[401927945,1768407050752,-1110.97,0.00030136,10]
[401927947,1768407050762,-1110.97,0.00030136,10]
[401927948,1768407050772,-1110.97,0.00030136,10]
[401927950,1768407050782,-1110.97,0.00030136,10]
[401927952,1768407050791,-1110.97,0.00030136,10]
[401927954,1768407050802,-1110.97,0.00030136,10]
[401927956,1768407050812,-1110.97,0.00030136,10]
[401927958,1768407050822,-1110.97,0.00030136,10]
[401927960,1768407050832,-1110.97,0.00030136,10]
[401927962,1768407050841,-1110.97,0.00030136,10]
[401927964,1768407050851,-1110.97,0.00030136,10]
[401927966,1768407050861,-1110.97,0.00030136,10]
[401927968,1768407050872,-1110.97,0.00030136,10]
[401927970,1768407050882,-1110.97,0.00030136,10]
[401927972,1768407050892,-1110.97,0.00030136,10]
[401927973,1768407050902,-1111.06753078,0.00030136,10]
[401927975,1768407050914,-500.0,0.00030136,2]
[401927977,1768407050923,-500.0,0.00030136,2]
[401927979,1768407050934,-355.89344662,0.00030136,120]
[401927981,1768407050944,-500.0,0.00030136,120]
[401927983,1768407050954,-151.0,0.00030136,7]
[401927985,1768407050964,-500.0,0.00030136,120]
[401927987,1768407050974,-500.0,0.00030136,120]
[401927989,1768407050983,-151.0,0.00030136,7]
[401927991,1768407050993,-253.56526499,0.00030136,120]
[401927993,1768407051002,-151.0,0.00030136,7]
[401927995,1768407051011,-151.0,0.00030136,7]
[401927997,1768407051021,-500.0,0.00030136,120]
[401927999,1768407051031,-540.71031304,0.00030136,120]
[401928001,1768407051040,-601.21589033,0.00030136,2]
[401928002,1768407051050,-500.0,0.00030136,120]
[401928004,1768407051060,-500.0,0.00030136,120]
[401928006,1768407051070,-500.0,0.00030136,120]
[401928008,1768407051080,-500.0,0.00030136,120]
[401928010,1768407051089,-196.58533488,0.00030136,120]
[401928012,1768407051099,-500.0,0.00030136,5]
[401928014,1768407051109,-500.0,0.00030136,5]
[401928016,1768407051119,-500.0,0.00030136,5]
[401928018,1768407051128,-500.0,0.00030136,5]